bitfinex/quotes_ETHUSD_20240722
["timestamp","ask_amount","ask_price","bid_price","bid_amount"]
[1721654583110,0.81641518,3498.2,3498.1,2.85863]
[1721654584212,0.81641518,3498.4,3498.1,2.85863]
[1721654587217,0.81641518,3498.4,3498.0,2.8587]
[1721654587431,0.05138538,3498.3,3498.2,2.85859]
[1721654587596,0.86780056,3498.3,3498.0,2.8587]
[1721654587792,0.81641518,3498.2,3498.0,2.8587]
[1721654588026,0.05134228,3498.1,3497.9,2.85883]
[1721654588299,0.81641518,3498.0,3497.9,2.85883]
[1721654588699,0.86773591,3498.0,3497.9,2.85883]
[1721654589274,0.86783734,3498.0,3497.9,2.85883]
[1721654589709,0.86783734,3498.0,3497.4,10.1692]
[1721654589914,0.81651661,3497.9,3497.6,2.85904]
[1721654590227,0.81651661,3497.9,3497.7,2.85902]
[1721654590396,0.81651661,3497.8,3497.6,2.85904]
[1721654590606,0.05123104,3497.7,3497.6,2.85904]
[1721654590935,2.4161,3498.1,3497.6,2.85904]
[1721654591110,0.81649397,3498.0,3497.7,2.85895]
[1721654591302,0.81649397,3497.9,3497.7,2.85895]
[1721654591746,0.05125259,3497.8,3497.7,2.85895]
[1721654591897,0.86774656,3497.8,3497.7,2.85895]
[1721654592103,0.86774656,3497.8,3497.7,5.71797]
[1721654592332,0.86774656,3497.8,3497.7,6.289767]
[1721654592525,0.86774656,3497.8,3497.7,9.286867]
[1721654592833,0.81649397,3497.8,3497.7,9.286867]
[1721654593141,0.81643903,3498.5,3498.0,5.7174]
[1721654593348,0.81643907,3498.5,3498.0,5.7174]
[1721654593515,0.05138869,3498.4,3498.0,2.8587]
[1721654593835,0.81643907,3498.3,3498.0,2.8587]
[1721654594144,0.05134559,3498.2,3498.0,2.8587]
[1721654594354,0.81643907,3498.1,3498.0,2.8587]
[1721654594652,0.86777425,3498.1,3498.0,2.8587]
[1721654597160,0.86777425,3498.1,3498.0,11.57071367]
[1721654597462,2.88,3499.0,3498.9,2.85804]
[1721654597611,3.69625433,3499.0,3498.9,2.85804]
[1721654597814,3.74435493,3499.0,3498.9,2.85804]
[1721654598363,3.74435493,3499.0,3498.8,2.85808]
[1721654598519,0.0481006,3499.0,3498.9,5.71608]
[1721654598848,1.48978959,3499.6,3499.0,2.85793]
[1721654599061,2.85722,3499.9,3499.0,2.85793]
[1721654599062,0.86479996,3499.5,3499.0,2.85793]
[1721654599221,0.86479996,3499.5,3498.8,0.807485]
[1721654599222,0.81653036,3499.4,3498.8,2.85806]
[1721654599419,0.04822654,3499.3,3498.7,5.21667]
[1721654599657,0.81653036,3499.2,3498.5,2.85836]
[1721654599961,2.85788,3499.1,3498.4,2.85844]
[1721654600256,0.81653036,3499.0,3498.4,2.85844]
[1721654600437,0.81653036,3499.0,3498.5,2.85836]
[1721654600639,0.86468189,3498.9,3498.5,2.85836]
[1721654600830,0.81653036,3498.8,3498.5,2.85836]
[1721654601024,0.81653036,3498.8,3498.7,2.8582]
[1721654601357,0.86466035,3498.8,3498.7,0.55]
[1721654601717,0.86466035,3498.8,3498.4,2.85844]
[1721654601918,0.81653036,3498.7,3498.3,2.85851]
[1721654602261,0.81653036,3498.7,3498.4,2.85843]
[1721654602414,0.81653036,3498.6,3498.4,2.85843]
[1721654602617,0.86463352,3498.5,3498.4,2.85843]
[1721654602937,0.86463352,3498.5,3498.1,2.85862]
[1721654603145,0.81653036,3498.4,3498.2,3.40856]
[1721654603347,0.81653036,3498.4,3498.3,2.85853]
[1721654603521,0.81653036,3498.4,3498.3,3.40853]
[1721654603712,2.85798,3499.0,3498.3,3.40853]
[1721654603713,3.67462036,3498.9,3498.3,3.40853]
[1721654604055,3.67465036,3498.8,3498.3,3.40853]
[1721654604219,0.81653036,3498.7,3498.3,3.40853]
[1721654604740,0.81653036,3498.6,3498.3,6.26698]
[1721654605065,2.85798,3499.0,3498.3,3.40845]
[1721654605066,0.81653036,3498.5,3498.3,3.40845]
[1721654605218,0.81653036,3498.4,3498.3,3.40845]
[1721654605422,2.85772,3499.3,3498.7,2.85819]
[1721654605650,0.81656711,3499.2,3498.7,2.85819]
[1721654606076,0.81656711,3499.2,3498.9,2.85799]
[1721654606374,0.81656711,3499.1,3498.8,2.85811]
[1721654606516,0.81656711,3499.0,3498.8,2.85811]
[1721654606824,0.81656711,3498.9,3498.8,2.85811]
[1721654607026,0.81656711,3499.3,3498.8,3.40811]
[1721654607343,0.81656711,3499.2,3498.9,2.85803]
[1721654607544,0.81656711,3499.1,3498.9,2.85803]
[1721654607756,0.81656711,3499.0,3498.9,2.85803]
[1721654607940,0.81656711,3499.3,3498.9,2.85803]
[1721654608960,0.81656711,3499.3,3498.8,0.55]
[1721654609120,4.13678994,3499.3,3498.8,0.55]
[1721654609317,0.81656711,3499.2,3498.8,0.55]
[1721654609662,0.81656711,3499.2,3498.3,9.714]
[1721654609663,2.85801,3499.0,3498.3,17.92706]
[1721654609872,0.81656711,3498.9,3498.4,0.55]
[1721654610050,3.67468711,3498.8,3498.4,0.55]
[1721654610226,0.81656711,3498.7,3498.3,7.31]
[1721654610621,0.81656711,3498.6,3498.3,7.31]
[1721654610848,0.81656711,3498.5,3498.2,2.8586]
[1721654611028,0.81656711,3498.4,3498.3,0.55]
[1721654611634,0.81656711,3498.7,3498.3,0.55]
[1721654612647,0.81656711,3498.7,3498.3,3.40851]
[1721654612968,3.67477711,3498.7,3498.3,0.55]
[1721654613166,0.81656711,3498.6,3498.2,3.40861]
[1721654614077,0.81656711,3498.6,3498.2,0.55]
[1721654614286,2.85837,3498.5,3498.1,0.55]
[1721654614588,0.81656711,3498.4,3498.0,0.55]
[1721654615084,0.81656711,3498.4,3498.0,3.40877]
[1721654615388,0.81656711,3498.3,3498.0,3.40877]
[1721654615676,2.8583,3498.6,3498.0,3.40877]
[1721654615881,0.81670968,3498.5,3498.0,3.40877]
[1721654617675,0.04819761,3498.4,3498.0,6.26748]
[1721654617875,0.81670968,3498.3,3498.0,3.40871]
[1721654618103,0.81670968,3498.3,3498.2,5.35681]
[1721654618876,0.81670968,3498.6,3498.2,5.35681]
[1721654619092,0.81670968,3498.5,3498.2,5.35681]
[1721654619240,0.81670968,3498.4,3498.3,2.85852]
[1721654619436,0.81661312,3498.8,3498.4,2.85842]
[1721654619744,0.81661175,3498.7,3498.4,2.85842]
[1721654619939,0.81661175,3498.6,3498.4,2.85839]
[1721654620179,0.81659616,3498.5,3498.4,2.85839]
[1721654620473,3.67453765,3499.1,3498.5,2.85834]
[1721654620691,0.81660765,3499.0,3498.5,2.85834]
[1721654621076,3.67457765,3499.0,3498.3,2.85845]
[1721654621286,2.85812,3498.8,3498.3,2.85845]
[1721654621484,0.81660765,3498.7,3498.3,2.85845]
[1721654622702,3.67480765,3498.7,3498.1,2.85865]
[1721654622882,0.81660765,3498.6,3498.2,0.55]
[1721654623405,0.81660765,3498.5,3498.3,2.85851]
[1721654623611,0.81660765,3498.4,3498.3,2.85851]
[1721654623970,5.17667,3498.9,3498.3,2.85851]
[1721654623971,0.81660765,3498.8,3498.3,2.85851]
[1721654624172,0.81660765,3498.7,3498.3,2.85851]
[1721654624415,0.81660765,3498.6,3498.5,2.85836]
[1721654624724,3.0,3499.2,3498.8,2.85811]
[1721654624869,3.0,3499.2,3498.6,2.85828]
[1721654624870,0.81656974,3499.1,3498.9,2.85803]
[1721654625227,0.81656974,3499.0,3498.7,2.85815]
[1721654625386,0.81656974,3498.9,3498.7,2.85815]
[1721654625576,0.81656974,3498.8,3498.7,2.85815]
[1721654625783,2.85771,3499.3,3498.8,2.85811]
[1721654626028,1.68810124,3499.2,3498.8,2.85811]
[1721654626318,0.81656824,3499.1,3498.8,2.85811]
[1721654626523,0.81656824,3499.0,3498.8,2.85811]
[1721654626817,0.81656824,3498.9,3498.8,2.85811]
[1721654627028,0.81656824,3499.2,3498.6,2.85821]
[1721654627222,0.81656824,3499.2,3498.7,0.55]
[1721654627528,1.76975806,3499.2,3498.7,0.55]
[1721654627837,0.81656824,3499.1,3498.6,3.40827]
[1721654628122,0.81656824,3499.1,3498.6,3.40821]
[1721654628516,0.81656824,3499.1,3498.8,2.85811]
[1721654630004,0.81656824,3499.1,3498.6,6.26643]
[1721654630406,0.81656824,3499.1,3498.6,3.40821]
[1721654630843,0.81656824,3499.1,3498.8,2.85811]
[1721654631339,0.81656824,3499.0,3498.8,2.85811]
[1721654631540,0.81656824,3498.9,3498.8,2.85811]
[1721654631740,0.81656824,3499.3,3498.8,2.85811]
[1721654631938,1.23269557,3499.3,3498.8,2.85811]
[1721654632132,0.81656824,3499.2,3498.8,2.85811]
[1721654632337,0.86489347,3499.2,3498.8,2.85811]
[1721654632536,0.81656824,3499.1,3498.8,2.85811]
[1721654632741,0.86487194,3499.1,3498.8,2.85811]
[1721654632938,0.81656824,3499.0,3498.8,2.85811]
[1721654633247,0.8648504,3499.0,3498.8,2.85811]
[1721654633548,0.81656824,3498.9,3498.8,2.85811]
[1721654633751,0.86482887,3498.9,3498.8,2.85811]
[1721654636646,0.86482887,3498.9,3498.6,3.40821]
[1721654636845,0.81656824,3498.8,3498.7,2.85815]
[1721654637046,0.81656824,3498.8,3498.7,3.40815]
[1721654637249,0.86482959,3498.8,3498.7,3.40815]
[1721654638256,0.86482959,3498.8,3498.7,6.26635]
[1721654640662,0.86482959,3498.8,3498.7,8.67035]
[1721654640873,0.04826135,3498.8,3498.7,8.67035]
[1721654641088,1.49033316,3499.7,3498.7,5.81216]
[1721654641239,0.81670225,3499.6,3499.2,5.71546]
[1721654641443,0.81670225,3499.6,3499.2,2.85776]
[1721654641781,0.81670225,3499.5,3499.2,2.85772]
[1721654642018,0.81670225,3499.4,3499.3,2.8577]
[1721654642340,0.81681029,3499.4,3499.1,4.7368]
[1721654642673,0.81681029,3499.3,3499.2,7.025053]
[1721654642848,0.81678867,3499.8,3499.6,2.8574]
[1721654643046,0.81678186,3499.7,3499.6,2.8574]
[1721654643333,0.81686117,3499.8,3499.7,2.85738]
[1721654643458,0.8168613,3499.8,3499.4,2.85757]
[1721654643796,2.88,3499.9,3499.0,10.16791]
[1721654643797,1.47226743,3499.7,3499.0,10.16791]
[1721654644081,2.3582,3499.5,3499.0,10.1679]
[1721654644385,0.8168613,3499.4,3499.0,10.1679]
[1721654644946,0.8168613,3499.4,3499.1,2.85783]
[1721654647601,0.04009067,3499.3,3499.1,2.85783]
[1721654647904,0.8168613,3499.2,3499.1,2.85783]
[1721654648113,0.85693044,3499.2,3499.1,2.85783]
[1721654649170,0.85688478,3499.2,3499.1,2.85783]
[1721654649621,0.81681564,3499.2,3499.1,2.85783]
[1721654649799,0.81681564,3499.6,3499.1,2.85783]
[1721654650276,0.0400378,3499.5,3499.1,2.85783]
[1721654650478,0.81681564,3499.4,3499.1,2.85783]
[1721654650704,0.81681564,3499.4,3498.9,2.85802]
[1721654650705,0.81681564,3499.4,3498.9,2.85796]
[1721654650929,0.03999474,3499.3,3498.8,5.30082]
[1721654651241,0.81681564,3499.2,3498.9,3.40803]
[1721654651602,0.04002252,3499.1,3498.9,3.40803]
[1721654651804,0.81681564,3499.0,3498.9,3.40803]
[1721654652198,0.85674734,3499.0,3498.9,3.40803]
[1721654653727,0.85674734,3499.0,3498.6,2.85823]
[1721654653925,0.85674734,3499.0,3498.5,2.85832]
[1721654653926,0.81681564,3498.9,3498.5,2.85832]
[1721654654151,0.81681564,3498.9,3498.6,2.85828]
[1721654654319,0.85678146,3498.9,3498.6,2.85828]
[1721654654519,0.81681564,3498.8,3498.6,2.85828]
[1721654654828,0.85679708,3498.8,3498.5,2.85836]
[1721654655043,0.81681564,3498.7,3498.5,2.85836]
[1721654655447,2.85792,3499.1,3498.5,2.85829]
[1721654655603,0.81667371,3499.0,3498.3,5.26248]
[1721654655805,0.85669822,3499.0,3498.6,2.85828]
[1721654656107,0.81667371,3498.9,3498.7,2.85819]
[1721654656304,0.81667371,3498.9,3498.8,2.85812]
[1721654656554,0.85665866,3498.9,3498.8,2.85812]
[1721654657654,0.85665866,3498.9,3498.7,2.8582]
[1721654657806,0.81667371,3498.8,3498.7,2.8582]
[1721654658228,0.85663399,3498.8,3498.7,2.8582]
[1721654658601,0.85663399,3498.8,3498.6,2.85827]
[1721654658797,0.81667371,3498.7,3498.6,2.85827]
[1721654659240,5.15601,3499.3,3498.7,2.85816]
[1721654659440,1.61810482,3499.2,3498.7,2.85816]
[1721654659647,0.81674582,3499.1,3498.7,2.85816]
[1721654660004,0.04000335,3499.0,3498.7,2.85816]
[1721654660229,0.81674582,3498.9,3498.7,2.85816]
[1721654660637,0.03996028,3498.8,3498.7,2.85816]
[1721654660826,0.8567061,3498.8,3498.7,2.85816]
[1721654661230,0.8567061,3498.8,3498.5,2.85834]
[1721654661431,0.8567061,3498.8,3498.4,0.55]
[1721654661432,0.81674582,3498.7,3498.4,2.85837]
[1721654661647,0.81674582,3498.7,3498.5,2.85831]
[1721654661853,0.03980683,3498.6,3498.5,2.85831]
[1721654662014,0.85655265,3498.6,3498.5,2.85831]
[1721654664624,0.85655265,3498.6,3498.3,2.85847]
[1721654664835,0.81674582,3498.5,3498.3,2.85847]
[1721654665230,0.0397756,3498.4,3498.3,2.85847]
[1721654665421,0.85652142,3498.4,3498.3,2.85847]
[1721654666368,0.85652142,3498.4,3498.3,3.85947]
[1721654667247,0.85652142,3498.4,3498.3,1.001]
[1721654667959,0.85652142,3498.4,3498.3,3.85953]
[1721654669230,0.85652142,3498.4,3498.3,6.71806]
[1721654669445,0.85652142,3498.4,3498.3,7.389866]
[1721654669632,0.85652142,3498.4,3498.3,7.939866]
[1721654669845,0.81674582,3498.4,3498.3,7.939866]
[1721654670067,3.92550349,3499.1,3498.5,2.85835]
[1721654670274,3.92550349,3499.1,3498.8,1.001]
[1721654670275,2.17951304,3499.0,3498.8,1.001]
[1721654670469,2.89770112,3499.0,3498.8,1.001]
[1721654670636,0.71818808,3499.0,3498.8,1.001]
[1721654673549,3.57615808,3499.0,3498.6,1.001]
[1721654674975,0.71818808,3499.0,3498.6,3.85927]
[1721654675141,0.03985473,3499.0,3498.8,1.001]
[1721654677186,2.89780473,3499.0,3498.6,1.001]
[1721654677588,2.85817,3498.8,3498.4,1.001]
[1721654678262,0.03974268,3498.7,3498.4,1.001]
[1721654678462,2.89795268,3498.7,3498.4,1.001]
[1721654678670,2.85821,3498.7,3498.4,1.001]
[1721654678874,0.03967659,3498.6,3498.4,1.001]
[1721654679049,2.31427659,3498.6,3498.4,1.001]
[1721654679881,0.03967659,3498.6,3498.4,1.001]
[1721654680301,5.21436,3498.9,3498.4,1.001]
[1721654680459,0.03963277,3498.5,3498.3,2.85852]
[1721654680661,5.21436,3498.9,3498.4,1.001]
[1721654680662,0.95614296,3498.8,3498.4,1.001]
[1721654680853,3.81426296,3498.8,3498.4,1.001]
[1721654681867,0.95614296,3498.8,3498.4,1.001]
[1721654682072,0.95614296,3498.8,3498.4,3.85944]
[1721654682695,0.95614296,3498.8,3498.6,1.001]
[1721654682860,0.6170473,3498.7,3498.6,1.001]
[1721654683062,5.21434,3498.9,3498.6,1.001]
[1721654683759,5.21434,3498.9,3498.4,1.001]
[1721654684700,2.85817,3498.8,3498.4,1.001]
[1721654685501,2.3563,3498.9,3498.4,1.001]
[1721654685797,0.38450751,3498.8,3498.4,1.001]
[1721654686692,0.38450751,3498.8,3498.6,1.001]
[1721654686857,1.4887126,3499.1,3498.6,3.85928]
[1721654687064,4.4887126,3499.2,3498.8,1.001]
[1721654687262,1.36287824,3499.1,3499.0,1.001]
[1721654687569,3.0,3499.2,3499.0,1.001]
[1721654687795,2.2956,3499.3,3499.0,1.001]
[1721654687796,6.78440163,3499.3,3499.0,1.001]
[1721654687960,2.61278505,3499.2,3499.0,1.001]
[1721654688161,1.24996416,3499.2,3499.0,1.001]
[1721654688401,4.24996416,3499.2,3499.0,1.001]
[1721654690014,4.24996416,3499.2,3498.8,1.001]
[1721654690180,1.36289488,3499.1,3498.8,1.001]
[1721654690384,1.36294745,3499.0,3498.4,10.16841]
[1721654690580,2.858,3499.0,3498.4,14.02776]
[1721654690778,5.85864095,3499.1,3498.5,2.85831]
[1721654691010,1.36298729,3499.0,3498.5,2.85831]
[1721654691192,5.85864095,3499.1,3498.5,2.85831]
[1721654691507,2.3283,3498.9,3498.4,11.16938]
[1721654692005,2.3283,3498.9,3498.4,7.31]
[1721654692206,2.85821,3498.7,3498.4,7.31]
[1721654692698,2.89791657,3498.6,3498.4,7.31]
[1721654693008,0.03962657,3498.6,3498.4,7.31]
[1721654693537,0.71118382,3498.6,3498.4,7.31]
[1721654693677,6.60876154,3498.5,3498.4,7.31]
[1721654693999,6.64812846,3498.5,3498.4,7.31]
[1721654694211,6.64812846,3498.5,3497.9,2.85884]
[1721654694413,5.28502692,3498.5,3497.9,2.85884]
[1721654694761,5.91724442,3498.5,3497.9,2.85884]
[1721654695909,5.91724442,3498.5,3497.7,5.25187]
[1721654696113,5.28502692,3498.5,3497.7,5.25187]
[1721654696672,5.28502692,3498.5,3498.0,2.85876]
[1721654700111,2.85854,3498.3,3497.6,10.16904]
[1721654700275,2.85854,3498.3,3497.7,2.85901]
[1721654700469,1.40232773,3498.2,3497.7,2.85895]
[1721654700668,1.40232773,3498.2,3497.6,10.16902]
[1721654700669,0.039168,3498.2,3497.6,10.16902]
[1721654700907,0.039168,3498.2,3497.9,2.8588]
[1721654701413,1.48924582,3498.6,3498.3,2.85846]
[1721654701709,1.48924582,3498.9,3498.6,2.85825]
[1721654701916,1.36284659,3498.8,3498.4,2.85838]
[1721654702111,4.34721582,3499.0,3498.4,2.85838]
[1721654702334,2.85211837,3498.9,3498.4,2.85838]
[1721654702470,1.36287255,3498.8,3498.4,2.85838]
[1721654702675,1.36287255,3498.7,3498.4,2.85838]
[1721654702891,1.48925133,3498.9,3498.4,2.85838]
[1721654703083,1.36293449,3498.8,3498.4,2.85838]
[1721654703288,1.48925133,3499.0,3498.6,2.85823]
[1721654703489,1.48925133,3499.0,3498.2,2.4787]
[1721654703490,1.36288721,3498.9,3498.2,2.4787]
[1721654703714,3.0,3499.1,3498.7,2.85818]
[1721654703917,1.36285087,3499.0,3498.7,2.85818]
[1721654704197,3.0,3499.1,3498.7,2.85818]
[1721654704552,1.36284355,3499.0,3498.9,2.85804]
[1721654704847,5.8576,3499.5,3498.9,2.85804]
[1721654705050,1.48954337,3499.3,3498.7,2.85813]
[1721654705204,1.36284167,3499.2,3498.7,5.71625]
[1721654705404,4.36284167,3499.2,3498.8,2.8581]
[1721654705607,1.36284167,3499.1,3498.8,2.8581]
[1721654705807,1.36284167,3499.1,3498.7,5.71625]
[1721654706030,1.36284167,3499.1,3498.8,2.85811]
[1721654706430,1.36284167,3499.1,3498.9,2.85802]
[1721654706761,1.36284167,3499.1,3498.8,2.85811]
[1721654707434,0.03847943,3499.0,3498.8,2.85811]
[1721654707921,1.48955157,3499.2,3498.8,2.85811]
[1721654708121,1.36290968,3499.1,3498.8,2.85811]
[1721654708363,1.36290968,3499.0,3498.8,2.85811]
[1721654708653,0.03847943,3499.0,3498.8,2.85811]
[1721654709063,4.48933637,3499.3,3498.8,2.85811]
[1721654709245,0.0384579,3498.9,3498.8,2.85811]
[1721654709434,1.48933637,3499.2,3498.8,2.85811]
[1721654709636,0.0384579,3498.9,3498.8,2.85811]
[1721654709858,1.48933637,3499.2,3498.8,2.85811]
[1721654710044,0.03837685,3498.9,3498.8,2.85811]
[1721654710250,1.48933637,3499.2,3498.8,2.85811]
[1721654710466,0.03838438,3498.9,3498.8,2.85811]
[1721654710626,1.48933637,3499.2,3498.8,2.85811]
[1721654710956,1.3628774,3499.1,3498.8,2.85811]
[1721654711144,0.03842388,3499.1,3498.8,2.85811]
[1721654712257,1.48942804,3499.2,3498.8,2.85811]
[1721654712425,0.03840987,3499.0,3498.8,2.85811]
[1721654712744,0.03838833,3498.9,3498.8,2.85811]
[1721654712931,1.48942804,3499.2,3498.8,2.85811]
[1721654713136,1.40132273,3499.1,3498.8,2.85811]
[1721654713457,0.03843895,3499.1,3498.8,2.85811]
[1721654714289,4.48942804,3499.3,3498.8,3.85911]
[1721654714442,0.03841741,3499.0,3498.8,3.85911]
[1721654714642,5.92901721,3499.3,3498.8,3.85911]
[1721654714897,0.03840341,3498.9,3498.8,3.85911]
[1721654715044,5.92901721,3499.3,3498.8,3.85911]
[1721654715045,4.43958917,3499.3,3498.8,3.85911]
[1721654715385,1.36287189,3499.2,3498.9,2.85802]
[1721654715687,4.48936805,3499.3,3499.0,1.001]
[1721654715688,1.36287189,3499.1,3499.0,1.001]
[1721654715845,1.48936805,3499.4,3499.0,3.85895]
[1721654716046,1.93755344,3499.7,3499.2,3.2824]
[1721654716246,2.85708,3500.1,3499.6,1.001]
[1721654716247,1.48936805,3499.8,3499.6,1.001]
[1721654716781,4.34650805,3500.0,3499.6,1.001]
[1721654716943,1.36261743,3499.8,3499.5,2.85747]
[1721654717145,4.36936805,3499.9,3499.4,3.85863]
[1721654717366,1.36264308,3499.8,3499.4,3.85863]
[1721654717640,8.52012117,3499.9,3499.4,3.85863]
[1721654717842,4.22003954,3499.8,3499.4,1.001]
[1721654718082,1.36278477,3499.7,3499.4,1.001]
[1721654718378,2.85739,3499.7,3499.4,1.001]
[1721654718579,2.8573,3499.8,3499.4,1.001]
[1721654718879,2.85755,3499.5,3498.9,2.301]
[1721654719097,2.85769,3499.4,3498.9,3.85902]
[1721654719241,2.85769,3499.4,3498.9,1.001]
[1721654719442,2.85769,3499.4,3498.9,3.85903]
[1721654720381,2.85769,3499.4,3498.9,1.001]
[1721654721081,2.85769,3499.4,3499.1,1.001]
[1721654722163,2.85769,3499.4,3498.7,1.001]
[1721654722164,2.85786,3499.2,3498.7,1.001]
[1721654722351,2.44479243,3499.4,3498.7,1.001]
[1721654722577,1.3966302,3499.3,3498.7,1.001]
[1721654722783,2.85784,3499.2,3498.7,1.001]
[1721654722988,0.0337115,3499.2,3498.7,3.85915]
[1721654723157,2.85776,3499.3,3498.9,1.001]
[1721654723360,0.0337115,3499.2,3498.9,1.001]
[1721654723559,2.85783,3499.2,3498.9,1.001]
[1721654723774,0.95620449,3499.3,3498.5,7.31]
[1721654723775,2.85802,3499.0,3498.5,7.31]
[1721654723973,2.85802,3499.0,3498.5,1.001]
[1721654724176,2.85817,3498.8,3498.3,1.001]
[1721654724359,2.8582,3498.7,3498.3,1.001]
[1721654724548,0.03352874,3498.6,3498.3,1.001]
[1721654725096,2.85811,3498.9,3498.3,3.85952]
[1721654725250,0.0335072,3498.5,3498.3,3.85952]
[1721654725452,2.85811,3498.9,3498.3,3.85952]
[1721654725650,2.85794,3499.1,3498.5,3.85935]
[1721654725882,1.36301995,3499.0,3498.5,3.85935]
[1721654726085,2.85797,3499.0,3498.5,1.001]
[1721654726284,2.85797,3499.0,3498.4,2.85842]
[1721654726462,4.34607289,3499.2,3498.1,7.31]
[1721654726660,3.0,3499.1,3498.6,2.85824]
[1721654728290,3.0,3499.1,3498.4,2.85842]
[1721654728460,2.85797,3499.0,3498.5,0.55]
[1721654728797,1.36300285,3498.9,3498.5,0.55]
[1721654729005,2.85797,3499.0,3498.5,0.55]
[1721654729285,2.85797,3499.0,3498.4,2.85838]
[1721654729486,3.73461907,3499.1,3498.5,2.85836]
[1721654729992,6.59250907,3499.1,3498.5,2.85836]
[1721654730654,0.81664429,3499.0,3498.5,2.85836]
[1721654732600,0.81664429,3499.0,3498.6,2.85826]
[1721654732753,0.81664429,3499.0,3498.7,2.4178]
[1721654732956,0.81664082,3498.9,3498.8,2.85807]
[1721654733257,2.85755,3499.5,3499.0,2.85794]
[1721654733452,0.8166124,3499.4,3499.0,2.85794]
[1721654734113,0.8166124,3499.4,3498.9,2.85802]
[1721654735619,0.8166124,3499.4,3499.1,2.85782]
[1721654735783,0.8166124,3499.3,3499.2,5.16599]
[1721654736112,0.81672194,3499.7,3499.3,2.85771]
[1721654736325,0.81672204,3499.7,3499.3,2.85771]
[1721654737273,0.81672204,3499.7,3499.2,2.3082]
[1721654737524,0.03157688,3499.6,3499.2,2.3082]
[1721654737815,0.81672204,3499.5,3499.2,5.16597]
[1721654738022,0.8483815,3499.5,3499.2,5.16597]
[1721654738316,0.81672204,3499.4,3499.2,5.16597]
[1721654738680,0.0316164,3499.3,3499.2,5.16597]
[1721654738880,0.84833844,3499.3,3499.2,5.16597]
[1721654741128,0.84833844,3499.3,3499.0,2.85795]
[1721654741287,0.81672204,3499.2,3499.1,0.55]
[1721654741682,0.84831691,3499.2,3499.1,0.55]
[1721654743222,0.84831691,3499.2,3499.1,3.40787]
[1721654743921,0.84831691,3499.2,3499.1,0.55]
[1721654745127,0.84831691,3499.2,3499.1,3.40787]
[1721654745509,0.84831691,3499.2,3499.1,0.55]
[1721654746330,0.84831691,3499.2,3499.1,3.40787]
[1721654746994,0.84831691,3499.2,3499.1,0.55]
[1721654747395,0.84831691,3499.2,3499.1,3.40787]
[1721654748300,0.84831691,3499.2,3499.1,4.40887]
[1721654748500,0.84831691,3499.2,3499.1,1.551]
[1721654749030,0.84831691,3499.2,3498.8,2.4518]
[1721654749301,0.84831691,3499.2,3498.9,1.001]
[1721654749302,0.81672204,3499.1,3498.9,1.001]
[1721654749612,0.03155023,3499.0,3498.9,1.001]
[1721654749833,0.84827227,3499.0,3498.9,1.001]
[1721654751195,0.84827227,3499.0,3498.9,3.85904]
[1721654752407,0.84827227,3499.0,3498.9,1.001]
[1721654754403,0.84827227,3499.0,3498.9,3.85904]
[1721654756233,0.84827227,3499.0,3498.9,1.001]
[1721654756433,0.84827227,3499.0,3498.5,2.4518]
[1721654756434,3.70622227,3499.0,3498.5,2.4518]
[1721654756633,3.70622227,3499.0,3498.4,2.8584]
[1721654756634,0.81672204,3498.9,3498.4,2.8584]
[1721654756839,0.84823016,3498.9,3498.4,2.8584]
[1721654757075,0.81672204,3498.8,3497.9,3.3831]
[1721654757238,4.61302576,3498.7,3497.9,1.001]
[1721654757547,2.85838,3498.5,3498.0,2.85877]
[1721654757755,0.81672204,3498.4,3498.1,1.001]
[1721654757921,0.84789909,3498.4,3498.1,3.85966]
[1721654758123,0.03117705,3498.4,3498.3,1.001]
[1721654758332,0.8476984,3498.4,3498.3,1.001]
[1721654758532,0.81652135,3498.4,3498.3,1.001]
[1721654758716,0.8476739,3498.4,3498.3,1.001]
[1721654761013,0.8476739,3498.4,3498.1,1.001]
[1721654761235,0.81652135,3498.3,3498.1,1.001]
[1721654761626,0.84762705,3498.3,3498.1,1.001]
[1721654761829,0.81652135,3498.2,3498.1,1.001]
[1721654762024,0.8476055,3498.2,3498.1,1.001]
[1721654762449,0.8476055,3498.2,3498.1,3.85969]
[1721654762666,0.81652135,3498.2,3498.1,3.85969]
[1721654763033,0.81652135,3498.7,3498.1,3.85969]
[1721654763234,0.81652135,3498.6,3498.3,1.001]
[1721654763748,3.67482135,3498.6,3498.3,1.001]
[1721654763955,0.81652135,3498.5,3498.3,1.001]
[1721654764479,0.81652135,3498.5,3498.1,1.001]
[1721654765842,3.67490135,3498.5,3498.1,1.001]
[1721654766066,0.81652135,3498.4,3498.1,1.001]
[1721654766950,4.40706721,3498.4,3497.7,7.31]
[1721654767150,0.81652135,3498.3,3497.7,7.31]
[1721654767457,2.85893,3497.8,3497.7,7.31]
[1721654767655,3.67545135,3497.8,3497.7,7.31]
[1721654767969,4.05511716,3497.8,3497.7,7.31]
[1721654768963,2.85902,3497.7,3497.3,1.001]
[1721654769272,2.85902,3497.7,3497.0,9.6708]
[1721654769273,0.84613054,3497.6,3497.1,3.86049]
[1721654769477,0.81649271,3497.5,3497.1,3.86049]
[1721654769674,0.84608034,3497.5,3497.1,6.71993]
[1721654769974,0.81649271,3497.4,3497.1,3.86044]
[1721654770194,0.81649271,3497.4,3497.3,1.001]
[1721654770396,2.85902,3497.7,3497.3,1.001]
[1721654770600,0.8164911,3497.6,3497.3,1.001]
[1721654771701,3.6756311,3497.6,3497.0,10.16959]
[1721654771860,2.3131,3497.4,3497.0,7.31]
[1721654772064,2.85951,3497.1,3497.0,7.31]
[1721654772413,2.8596,3497.0,3496.6,1.001]
[1721654772565,0.81661278,3496.9,3496.6,1.001]
[1721654773269,2.85951,3497.1,3496.6,3.8609]
[1721654773700,2.85951,3497.1,3496.6,1.001]
[1721654774264,2.85951,3497.1,3496.5,2.85999]
[1721654775796,2.85935,3497.3,3496.6,2.85986]